fUST/lending_fUST_20250226
["ID","MTS","AMOUNT","RATE_DAILY","PERIOD"]
[354509597,1740544269274,-500.0,0.0004,2]
[354509598,1740544269282,-1038.13,0.0004,2]
[354509599,1740544269292,-709.18,0.0004,2]
[354509600,1740544269302,-500.0,0.0004,2]
[354509601,1740544269312,-500.0,0.0004,2]
[354509602,1740544269321,-500.0,0.0004,2]
[354509603,1740544269330,-151.0,0.0004,14]
[354509604,1740544269340,-500.0,0.0004,2]
[354509605,1740544269350,-500.0,0.0004,2]
[354509606,1740544269359,-1163.07,0.0004,2]
[354509607,1740544269369,-1165.42,0.0004,2]
[354509608,1740544269378,-567.85,0.0004,2]
[354509609,1740544269388,-500.0,0.0004,2]
[354509610,1740544269398,-500.0,0.0004,2]
[354509611,1740544269407,-500.0,0.0004,2]
[354509612,1740544269416,-500.0,0.0004,2]
[354509613,1740544269426,-500.0,0.0004,2]
[354509614,1740544269435,-500.0,0.0004,2]
[354509615,1740544269444,-2388.56,0.0004,2]
[354509616,1740544269452,-500.0,0.0004,2]
[354509617,1740544269461,-2071.86,0.0004,2]
[354509618,1740544269469,-2276.35,0.0004,2]
[354509619,1740544269478,-500.0,0.0004,2]
[354509620,1740544269488,-249.26020772,0.0004,2]
[354509621,1740544269498,-805.84,0.0004,2]
[354509622,1740544269513,-630.89015222,0.0004,2]
[354509623,1740544269522,-4991.19,0.0004,2]
[354509624,1740544269531,-7488.25,0.0004,2]
[354509625,1740544269542,-680.72,0.0004,2]
[354509626,1740544269551,-500.0,0.0004,2]
[354509627,1740544269560,-500.0,0.0004,2]
[354509628,1740544269570,-6133.91,0.0004,2]
[354509629,1740544269581,-500.0,0.0004,2]
[354509630,1740544269590,-957.39,0.0004,2]
[354509631,1740544269599,-1005.05,0.0004,2]
[354509632,1740544269608,-151.0,0.0004,14]
[354509633,1740544269618,-151.0,0.0004,14]
[354509634,1740544269627,-500.0,0.0004,2]
[354509635,1740544269636,-670.81,0.0004,2]
[354509636,1740544269646,-916.92,0.0004,2]
[354509637,1740544269655,-1103.64,0.0004,2]
[354509638,1740544269665,-1211.22,0.0004,2]
[354509639,1740544269675,-500.0,0.0004,2]
[354509640,1740544269684,-743.17,0.0004,2]
[354509641,1740544269693,-2331.34,0.0004,2]
[354509642,1740544269702,-500.0,0.0004,2]
[354509643,1740544269712,-1647.12,0.0004,2]
[354509644,1740544269721,-636.93227531,0.0004,2]
[354509645,1740544269732,-777.71,0.0004,2]
[354509646,1740544269742,-1861.53,0.0004,2]
[354509647,1740544269752,-500.0,0.0004,2]
[354509648,1740544269761,-4944.6,0.0004,2]
[354509649,1740544269771,-500.0,0.0004,2]
[354509650,1740544269780,-2359.47,0.0004,2]
[354509651,1740544269790,-780.51,0.0004,2]
[354509652,1740544269799,-500.0,0.0004,2]
[354509653,1740544269809,-4514.97,0.0004,2]
[354509654,1740544269818,-500.0,0.0004,2]
[354509655,1740544269828,-7379.64,0.0004,2]
[354509656,1740544269837,-500.0,0.0004,2]
[354509657,1740544269847,-160.0,0.00040151,5]
[354509658,1740544269856,-29500.42,0.000402,30]
[354509659,1740544269866,-500.0,0.00040273,2]
[354509660,1740544269875,-500.0,0.00040273,2]
[354509661,1740544269884,-500.0,0.00040273,2]
[354509662,1740544269894,-500.0,0.00040273,2]
[354509663,1740544269903,-500.0,0.00040273,2]
[354509664,1740544269912,-500.0,0.00040273,2]
[354509665,1740544269922,-500.0,0.00040273,2]
[354509666,1740544269931,-500.0,0.00040273,2]
[354509667,1740544269941,-515.79823756,0.00040273,2]
[354509668,1740544269951,-500.0,0.00040273,2]
[354509669,1740544269960,-500.0,0.00040273,2]
[354509670,1740544269969,-500.0,0.00040273,2]
[354509671,1740544269979,-500.0,0.00040273,2]
[354509672,1740544269989,-500.0,0.00040273,2]
[354509673,1740544269999,-609.9,0.00040273,2]
[354509674,1740544270008,-500.0,0.00040273,2]
[354509675,1740544270018,-500.0,0.00040273,2]
[354509676,1740544270027,-506.36,0.00040273,2]
[354509677,1740544270039,-500.0,0.00040273,2]
[354509678,1740544270048,-500.0,0.00040273,2]
[354509679,1740544270057,-500.0,0.00040273,2]
[354509680,1740544270066,-500.0,0.00040273,2]
[354509681,1740544270076,-377.4894738,0.00040273,2]
[354509682,1740544270089,-500.0,0.00040273,2]
[354509683,1740544270099,-596.83,0.00040273,2]
[354509684,1740544270108,-500.0,0.00040273,2]
[354509685,1740544270119,-586.25,0.00040273,2]
[354509686,1740544270130,-236.2693605,0.00040273,2]
[354509687,1740544270140,-551.48,0.00040273,2]
[354509688,1740544270151,-968.85,0.00040273,2]
[354509689,1740544270161,-446.42471148,0.00040273,2]
[354509690,1740544270170,-500.0,0.00040273,2]
[354509691,1740544270180,-500.0,0.00040273,2]
[354509692,1740544270191,-500.0,0.00040273,2]
[354509693,1740544270201,-500.0,0.00040273,2]
[354509694,1740544270211,-393.50902565,0.00040273,2]
[354509695,1740544270222,-500.0,0.00040273,2]
[354509696,1740544270231,-500.0,0.00040273,2]
[354509697,1740544270241,-500.0,0.00040273,2]
[354509698,1740544270251,-151.0,0.00040273,14]
[354509699,1740544270260,-500.0,0.00040273,2]
[354509700,1740544270268,-685.27,0.00040273,2]
[354509701,1740544270277,-500.0,0.00040273,2]
[354509702,1740544270287,-399.48823418,0.00040273,2]
[354509703,1740544270296,-238.99592767,0.00040273,2]
[354509704,1740544270306,-500.0,0.00040273,2]
[354509705,1740544270315,-151.0,0.00040273,14]
[354509706,1740544270325,-500.0,0.00040273,2]
[354509707,1740544270335,-151.0,0.00040273,14]
[354509708,1740544270345,-500.0,0.00040273,2]
[354509709,1740544270354,-500.0,0.00040273,2]
[354509710,1740544270364,-161.6975,0.00040273,14]
[354509711,1740544270373,-500.0,0.00040273,2]
[354509712,1740544270383,-957.55,0.00040273,2]
[354509713,1740544270393,-500.0,0.00040273,2]
[354509714,1740544270402,-500.0,0.00040273,2]
[354509715,1740544270415,-695.71,0.00040273,2]
[354509716,1740544270434,-998.92,0.00040273,2]
[354509717,1740544270450,-151.0,0.00040273,14]
[354509718,1740544270460,-151.0,0.00040273,14]
[354509719,1740544270469,-955.63,0.00040273,2]
[354509720,1740544270479,-509.94598532,0.00040273,2]
[354509721,1740544270488,-500.0,0.00040273,2]
[354509722,1740544270498,-500.0,0.00040273,2]
[354509723,1740544270512,-500.0,0.00040273,2]
[354509724,1740544270522,-1281.14,0.00040273,2]
[354509725,1740544270531,-520.22,0.00040273,2]
[354509726,1740544270541,-741.57,0.00040273,2]
[354509727,1740544270552,-607.03913004,0.00040273,2]
[354509728,1740544270561,-500.0,0.00040273,2]
[354509729,1740544270570,-1170.52,0.00040273,2]
[354509730,1740544270581,-500.0,0.00040273,2]
[354509731,1740544270591,-500.0,0.00040273,2]
[354509732,1740544270601,-9359.13,0.00040273,2]
[354509733,1740544270610,-500.0,0.00040273,2]
[354509734,1740544270620,-500.0,0.00040273,2]
[354509735,1740544270629,-946.31,0.00040273,2]
[354509736,1740544270639,-500.0,0.00040273,2]
[354509737,1740544270650,-691.55,0.00040273,2]
[354509738,1740544270659,-2445.19,0.00040273,2]
[354509739,1740544270669,-607.41,0.00040273,2]
[354509740,1740544270679,-1967.57,0.00040273,2]
[354509741,1740544270688,-500.0,0.00040273,2]
[354509742,1740544270698,-500.0,0.00040273,2]
[354509743,1740544270707,-2973.75,0.00040273,2]
[354509744,1740544270717,-663.57,0.00040273,2]
[354509745,1740544270727,-500.0,0.00040273,2]
[354509746,1740544270737,-500.0,0.00040273,2]
[354509747,1740544270747,-500.0,0.00040273,2]
[354509748,1740544270757,-996.6,0.00040273,2]
[354509749,1740544270767,-72329.29,0.00040273,2]
[354509750,1740544270776,-500.0,0.00040273,2]
[354509751,1740544270786,-500.0,0.00040273,2]
[354509752,1740544270796,-902.02,0.00040273,2]
[354509753,1740544270805,-500.0,0.00040273,2]
[354509754,1740544270815,-1396.78,0.00040273,2]
[354509755,1740544270824,-755.39,0.00040273,2]
[354509756,1740544270833,-500.0,0.00040273,2]
[354509757,1740544270843,-702.41,0.00040273,2]
[354509758,1740544270853,-500.0,0.00040273,120]
[354509759,1740544270863,-12378.52,0.00040273,2]
[354509760,1740544270874,-500.0,0.00040273,2]
[354509761,1740544270887,-1038.13,0.00040273,2]
[354509762,1740544270899,-709.18,0.00040273,2]
[354509763,1740544270908,-500.0,0.00040273,2]
[354509764,1740544270918,-500.0,0.00040273,2]
[354509765,1740544270928,-500.0,0.00040273,2]
[354509766,1740544270938,-500.0,0.00040273,2]
[354509767,1740544270947,-500.0,0.00040273,2]
[354509768,1740544270958,-1163.07,0.00040273,2]
[354509769,1740544270968,-1165.42,0.00040273,2]
[354509770,1740544270978,-567.85,0.00040273,2]
[354509771,1740544270987,-500.0,0.00040273,2]
[354509772,1740544270997,-500.0,0.00040273,2]
[354509773,1740544271006,-500.0,0.00040273,2]
[354509774,1740544271016,-500.0,0.00040273,2]
[354509775,1740544271026,-500.0,0.00040273,2]
[354509776,1740544271035,-500.0,0.00040273,2]
[354509777,1740544271045,-2388.56,0.00040273,2]
[354509778,1740544271055,-500.0,0.00040273,2]
[354509779,1740544271064,-2071.86,0.00040273,2]
[354509780,1740544271074,-2276.35,0.00040273,2]
[354509781,1740544271084,-500.0,0.00040273,2]
[354509782,1740544271094,-805.84,0.00040273,2]
[354509783,1740544271242,-4991.19,0.00040273,2]
[354509784,1740544271252,-7488.25,0.00040273,2]
[354509785,1740544271262,-680.72,0.00040273,2]
[354509786,1740544271272,-412.3758366,0.00040273,2]
[354509787,1740544271281,-500.0,0.00040273,2]
[354509788,1740544271290,-6133.91,0.00040273,2]
[354509789,1740544271300,-500.0,0.00040273,2]
[354509790,1740544271309,-957.39,0.00040273,2]
[354509791,1740544271318,-1005.05,0.00040273,2]
[354509792,1740544271328,-500.0,0.00040273,2]
[354509793,1740544271337,-670.81,0.00040273,2]
[354509794,1740544271346,-916.92,0.00040273,2]
[354509795,1740544271356,-1103.64,0.00040273,2]
[354509796,1740544271366,-1211.22,0.00040273,2]
[354509797,1740544271375,-500.0,0.00040273,2]
[354509798,1740544271384,-743.17,0.00040273,2]
[354509799,1740544271394,-2331.34,0.00040273,2]
[354509800,1740544271403,-500.0,0.00040273,2]
[354509801,1740544271412,-1647.12,0.00040273,2]
[354509802,1740544271421,-777.71,0.00040273,2]
[354509803,1740544271429,-1861.53,0.00040273,2]
[354509804,1740544271439,-500.0,0.00040273,2]
[354509805,1740544271448,-4944.6,0.00040273,2]
[354509806,1740544271458,-500.0,0.00040273,2]
[354509807,1740544271469,-2359.47,0.00040273,2]
[354509808,1740544271478,-780.51,0.00040273,2]
[354509809,1740544271487,-500.0,0.00040273,2]
[354509810,1740544271498,-4514.97,0.00040273,2]
[354509811,1740544271511,-500.0,0.00040273,2]
[354509812,1740544271520,-7379.64,0.00040273,2]
[354509813,1740544271530,-500.0,0.00040273,2]
[354509814,1740544271539,-500.0,0.00040547,2]
[354509815,1740544271548,-332.19025489,0.00040547,2]
[354509816,1740544271557,-500.0,0.00040547,2]
[354509817,1740544271567,-555.80813993,0.00040547,2]
[354509818,1740544271577,-222.61694298,0.00040547,2]
[354509819,1740544271587,-500.0,0.00040547,2]
[354509820,1740544271596,-598.32304315,0.00040547,2]
[354509821,1740544271606,-500.0,0.00040547,2]
[354509822,1740544271615,-500.0,0.00040547,2]
[354509823,1740544271625,-500.0,0.00040547,2]
[354509824,1740544271634,-500.0,0.00040547,2]
[354509825,1740544271643,-500.0,0.00040547,2]
[354509826,1740544271653,-500.0,0.00040547,2]
[354509827,1740544271662,-609.9,0.00040547,2]
[354509828,1740544271672,-500.0,0.00040547,2]
[354509829,1740544271681,-428.32816038,0.00040547,2]
[354509830,1740544271691,-506.36,0.00040547,2]
[354509831,1740544271700,-500.0,0.00040547,2]
[354509832,1740544271709,-500.0,0.00040547,2]
[354509833,1740544271718,-500.0,0.00040547,2]
[354509834,1740544271727,-500.0,0.00040547,2]
[354509835,1740544271737,-500.0,0.00040547,2]
[354509836,1740544271747,-596.83,0.00040547,2]
[354509837,1740544271756,-500.0,0.00040547,2]
[354509838,1740544271765,-586.25,0.00040547,2]
[354509839,1740544271774,-551.48,0.00040547,2]
[354509840,1740544271784,-968.85,0.00040547,2]
[354509841,1740544271793,-151.0,0.00040547,14]
[354509842,1740544271802,-500.0,0.00040547,2]
[354509843,1740544271811,-500.0,0.00040547,2]
[354509844,1740544271820,-157.839357,0.00040547,14]
[354509845,1740544271829,-151.0,0.00040547,14]
[354509846,1740544271839,-500.0,0.00040547,2]
[354509847,1740544271848,-500.0,0.00040547,2]
[354509848,1740544271857,-500.0,0.00040547,2]
[354509849,1740544271867,-500.0,0.00040547,2]
[354509850,1740544271876,-500.0,0.00040547,2]
[354509851,1740544271885,-500.0,0.00040547,2]
[354509852,1740544271895,-685.27,0.00040547,2]
[354509853,1740544271905,-500.0,0.00040547,2]
[354509854,1740544271915,-500.0,0.00040547,2]
[354509855,1740544271925,-500.0,0.00040547,2]
[354509856,1740544271935,-500.0,0.00040547,2]
[354509857,1740544271945,-500.0,0.00040547,2]
[354509858,1740544271954,-500.0,0.00040547,2]
[354509859,1740544271964,-957.55,0.00040547,2]
[354509860,1740544271973,-500.0,0.00040547,2]
[354509861,1740544271983,-500.0,0.00040547,2]
[354509862,1740544271992,-695.71,0.00040547,2]
[354509863,1740544272001,-998.92,0.00040547,2]
[354509864,1740544272010,-955.63,0.00040547,2]
[354509865,1740544272019,-582.46150214,0.00040547,2]
[354509866,1740544272028,-500.0,0.00040547,2]
[354509867,1740544272037,-500.0,0.00040547,2]
[354509868,1740544272046,-1281.14,0.00040547,2]
[354509869,1740544272056,-520.22,0.00040547,2]
[354509870,1740544272065,-741.57,0.00040547,2]
[354509871,1740544272075,-500.0,0.00040547,2]
[354509872,1740544272084,-1170.52,0.00040547,2]
[354509873,1740544272093,-500.0,0.00040547,2]
[354509874,1740544272103,-500.0,0.00040547,2]
[354509875,1740544272118,-9359.13,0.00040547,2]
[354509876,1740544272337,-500.0,0.00040547,2]
[354509877,1740544272347,-500.0,0.00040547,2]
[354509878,1740544272356,-946.31,0.00040547,2]
[354509879,1740544272366,-500.0,0.00040547,2]
[354509880,1740544272375,-691.55,0.00040547,2]
[354509881,1740544272384,-2445.19,0.00040547,2]
[354509882,1740544272394,-607.41,0.00040547,2]
[354509883,1740544272403,-1967.57,0.00040547,2]
[354509884,1740544272412,-160.915029,0.00040547,14]
[354509885,1740544272422,-511.87167872,0.00040547,2]
[354509886,1740544272431,-500.0,0.00040547,2]
[354509887,1740544272440,-2973.75,0.00040547,2]
[354509888,1740544272450,-663.57,0.00040547,2]
[354509889,1740544272459,-500.0,0.00040547,2]
[354509890,1740544272468,-500.0,0.00040547,2]
[354509891,1740544272478,-500.0,0.00040547,2]
[354509892,1740544272487,-996.6,0.00040547,2]
[354509893,1740544272497,-72329.29,0.00040547,2]
[354509894,1740544272510,-500.0,0.00040547,2]
[354509895,1740544272520,-500.0,0.00040547,2]
[354509896,1740544272529,-902.02,0.00040547,2]
[354509897,1740544272538,-500.0,0.00040547,2]
[354509898,1740544272549,-151.0,0.00040547,14]
[354509899,1740544272559,-1396.78,0.00040547,2]
[354509900,1740544272568,-755.39,0.00040547,2]
[354509901,1740544272578,-500.0,0.00040547,2]
[354509902,1740544272588,-151.0,0.00040547,14]
[354509903,1740544272597,-702.41,0.00040547,2]
[354509904,1740544272606,-500.0,0.00040547,120]
[354509905,1740544272615,-151.0,0.00040547,14]
[354509906,1740544272625,-12378.52,0.00040547,2]
[354509907,1740544272635,-151.0,0.00040547,14]
[354509908,1740544272644,-500.0,0.00040547,2]
[354509909,1740544272654,-1038.13,0.00040547,2]
[354509910,1740544272664,-709.18,0.00040547,2]
[354509911,1740544272673,-500.0,0.00040547,2]
[354509912,1740544272682,-500.0,0.00040547,2]
[354509913,1740544272692,-500.0,0.00040547,2]
[354509914,1740544272702,-151.0,0.00040547,14]
[354509915,1740544272711,-500.0,0.00040547,2]
[354509916,1740544272720,-500.0,0.00040547,2]
[354509917,1740544272730,-1163.07,0.00040547,2]
[354509918,1740544272740,-1165.42,0.00040547,2]
[354509919,1740544272749,-567.85,0.00040547,2]
[354509920,1740544272758,-304.04694734,0.00040547,2]
[354509921,1740544272768,-500.0,0.00040547,2]
[354509922,1740544272777,-500.0,0.00040547,2]
[354509923,1740544272787,-500.0,0.00040547,2]
[354509924,1740544272796,-500.0,0.00040547,2]
[354509925,1740544272806,-500.0,0.00040547,2]
[354509926,1740544272815,-2388.56,0.00040547,2]
[354509927,1740544272824,-500.0,0.00040547,2]
[354509928,1740544272834,-2071.86,0.00040547,2]
[354509929,1740544272843,-2276.35,0.00040547,2]
[354509930,1740544272852,-500.0,0.00040547,2]
[354509931,1740544272862,-805.84,0.00040547,2]
[354509932,1740544272872,-4991.19,0.00040547,2]
[354509933,1740544272881,-7488.25,0.00040547,2]
[354509934,1740544272890,-219.600819,0.00040547,14]
[354509935,1740544272900,-680.72,0.00040547,2]
[354509936,1740544272909,-500.0,0.00040547,2]
[354509937,1740544272919,-6133.91,0.00040547,2]
[354509938,1740544272929,-500.0,0.00040547,2]
[354509939,1740544272939,-957.39,0.00040547,2]
[354509940,1740544272949,-1005.05,0.00040547,2]
[354509941,1740544272959,-500.0,0.00040547,2]
[354509942,1740544272974,-670.81,0.00040547,2]
[354509943,1740544272984,-916.92,0.00040547,2]
[354509944,1740544272996,-1103.64,0.00040547,2]
[354509945,1740544273006,-1211.22,0.00040547,2]
[354509946,1740544273016,-500.0,0.00040547,2]
[354509947,1740544273026,-743.17,0.00040547,2]
[354509948,1740544273036,-2331.34,0.00040547,2]
[354509949,1740544273046,-500.0,0.00040547,2]
[354509950,1740544273057,-151.0,0.00040547,14]
[354509951,1740544273068,-151.0,0.00040547,14]
[354509952,1740544273079,-1647.12,0.00040547,2]
[354509953,1740544273089,-777.71,0.00040547,2]
[354509954,1740544273096,-1861.53,0.00040547,2]
[354509955,1740544273104,-500.0,0.00040547,2]
[354509956,1740544273113,-4944.6,0.00040547,2]
[354509957,1740544273122,-500.0,0.00040547,2]
[354509958,1740544273132,-2359.47,0.00040547,2]
[354509959,1740544273142,-780.51,0.00040547,2]
[354509960,1740544273151,-500.0,0.00040547,2]
[354509961,1740544273159,-4514.97,0.00040547,2]
[354509962,1740544273167,-500.0,0.00040547,2]
[354509963,1740544273174,-7379.64,0.00040547,2]
[354509964,1740544273182,-500.0,0.00040821,2]
[354509965,1740544273190,-500.0,0.00040821,2]
[354509966,1740544273198,-573.6666251,0.00040821,2]
[354509967,1740544273208,-500.0,0.00040821,2]
[354509968,1740544273218,-500.0,0.00040821,2]
[354509969,1740544273228,-424.47422459,0.00040821,2]
[354509970,1740544273238,-500.0,0.00040821,2]
[354509971,1740544273250,-500.0,0.00040821,2]
[354509972,1740544273260,-467.41832076,0.00040821,2]
[354509973,1740544273270,-609.9,0.00040821,2]
[354509974,1740544273280,-500.0,0.00040821,2]
[354509975,1740544273290,-506.36,0.00040821,2]
[354509976,1740544273299,-500.0,0.00040821,2]
[354509977,1740544273309,-500.0,0.00040821,2]
[354509978,1740544273319,-500.0,0.00040821,2]
[354509979,1740544273328,-500.0,0.00040821,2]
[354509980,1740544273338,-500.0,0.00040821,2]
[354509981,1740544273347,-596.83,0.00040821,2]
[354509982,1740544273357,-500.0,0.00040821,2]
[354509983,1740544273366,-586.25,0.00040821,2]
[354509984,1740544273376,-151.0,0.00040821,14]
[354509985,1740544273385,-551.48,0.00040821,2]
[354509986,1740544273395,-968.85,0.00040821,2]
[354509987,1740544273404,-151.660557,0.00040821,14]
[354509988,1740544273414,-500.0,0.00040821,2]
[354509989,1740544273424,-500.0,0.00040821,2]
[354509990,1740544273433,-500.0,0.00040821,2]
[354509991,1740544273443,-500.0,0.00040821,2]
[354509992,1740544273453,-500.0,0.00040821,2]
[354509993,1740544273463,-500.0,0.00040821,2]
[354509994,1740544273472,-500.0,0.00040821,2]
[354509995,1740544273482,-500.0,0.00040821,2]
[354509996,1740544273492,-685.27,0.00040821,2]
[354509997,1740544273504,-500.0,0.00040821,2]
[354509998,1740544273516,-500.0,0.00040821,2]
[354509999,1740544273526,-500.0,0.00040821,2]
[354510000,1740544273535,-500.0,0.00040821,2]
[354510001,1740544273544,-500.0,0.00040821,2]
[354510002,1740544273554,-151.893702,0.00040821,14]
[354510003,1740544273564,-500.0,0.00040821,2]
[354510004,1740544273574,-151.0,0.00040821,14]
[354510005,1740544273584,-957.55,0.00040821,2]
[354510006,1740544273594,-500.0,0.00040821,2]
[354510007,1740544273603,-500.0,0.00040821,2]
[354510008,1740544273613,-695.71,0.00040821,2]
[354510009,1740544273622,-998.92,0.00040821,2]
[354510010,1740544273631,-955.63,0.00040821,2]
[354510011,1740544273641,-500.0,0.00040821,2]
[354510012,1740544273650,-500.0,0.00040821,2]
[354510013,1740544273660,-1281.14,0.00040821,2]
[354510014,1740544273669,-520.22,0.00040821,2]
[354510015,1740544273679,-741.57,0.00040821,2]
[354510016,1740544273689,-500.0,0.00040821,2]
[354510017,1740544273699,-151.0,0.00040821,14]
[354510018,1740544273708,-290.540756,0.00040821,14]
[354510019,1740544273718,-290.540756,0.00040821,14]
[354510020,1740544273727,-1170.52,0.00040821,2]
[354510021,1740544273737,-500.0,0.00040821,2]
[354510022,1740544273747,-500.0,0.00040821,2]
[354510023,1740544273757,-9359.13,0.00040821,2]
[354510024,1740544273767,-500.0,0.00040821,2]
[354510025,1740544273777,-151.0,0.00040821,14]
[354510026,1740544273787,-151.0,0.00040821,14]
[354510027,1740544273798,-500.0,0.00040821,2]
[354510028,1740544273807,-946.31,0.00040821,2]
[354510029,1740544273817,-500.0,0.00040821,2]
[354510030,1740544273826,-691.55,0.00040821,2]
[354510031,1740544273836,-151.258555,0.00040821,14]
[354510032,1740544273846,-2445.19,0.00040821,2]
[354510033,1740544273856,-607.41,0.00040821,2]
[354510034,1740544273866,-1967.57,0.00040821,2]
[354510035,1740544273876,-500.0,0.00040821,2]
[354510036,1740544273884,-2973.75,0.00040821,2]
[354510037,1740544273893,-663.57,0.00040821,2]
[354510038,1740544273902,-500.0,0.00040821,2]
[354510039,1740544273911,-500.0,0.00040821,2]
[354510040,1740544273920,-500.0,0.00040821,2]
[354510041,1740544273929,-996.6,0.00040821,2]
[354510042,1740544273938,-72329.29,0.00040821,2]
[354510043,1740544273947,-500.0,0.00040821,2]
[354510044,1740544273957,-286.68649141,0.00040821,2]
[354510045,1740544273968,-902.02,0.00040821,2]
[354510046,1740544273977,-500.0,0.00040821,2]
[354510047,1740544273987,-1396.78,0.00040821,2]
[354510048,1740544273997,-755.39,0.00040821,2]
[354510049,1740544274007,-500.0,0.00040821,2]
[354510050,1740544274017,-702.41,0.00040821,2]
[354510051,1740544274027,-500.0,0.00040821,120]
[354510052,1740544274038,-12378.52,0.00040821,2]
[354510053,1740544274048,-500.0,0.00040821,2]
[354510054,1740544274057,-1038.13,0.00040821,2]
[354510055,1740544274067,-709.18,0.00040821,2]
[354510056,1740544274077,-500.0,0.00040821,2]
[354510057,1740544274086,-500.0,0.00040821,2]
[354510058,1740544274096,-500.0,0.00040821,2]
[354510059,1740544274106,-500.0,0.00040821,2]
[354510060,1740544274116,-500.0,0.00040821,2]
[354510061,1740544274126,-1163.07,0.00040821,2]
[354510062,1740544274136,-1165.42,0.00040821,2]
[354510063,1740544274145,-567.85,0.00040821,2]
[354510064,1740544274154,-500.0,0.00040821,2]
[354510065,1740544274165,-500.0,0.00040821,2]
[354510066,1740544274175,-500.0,0.00040821,2]
[354510067,1740544274186,-500.0,0.00040821,2]
[354510068,1740544274196,-500.0,0.00040821,2]
[354510069,1740544274205,-2388.56,0.00040821,2]
[354510070,1740544274215,-500.0,0.00040821,2]
[354510071,1740544274225,-2071.86,0.00040821,2]
[354510072,1740544274236,-2276.35,0.00040821,2]
[354510073,1740544274247,-500.0,0.00040821,2]
[354510074,1740544274257,-805.84,0.00040821,2]
[354510075,1740544274268,-4991.19,0.00040821,2]
[354510076,1740544274278,-7488.25,0.00040821,2]
[354510077,1740544274287,-680.72,0.00040821,2]
[354510078,1740544274298,-500.0,0.00040821,2]
[354510079,1740544274308,-6133.91,0.00040821,2]
[354510080,1740544274320,-500.0,0.00040821,2]
[354510081,1740544274331,-957.39,0.00040821,2]
[354510082,1740544274341,-1005.05,0.00040821,2]
[354510083,1740544274351,-151.0,0.00040821,14]
[354510084,1740544274361,-151.0,0.00040821,14]
[354510085,1740544274371,-500.0,0.00040821,2]
[354510086,1740544274381,-670.81,0.00040821,2]
[354510087,1740544274391,-916.92,0.00040821,2]
[354510088,1740544274401,-1103.64,0.00040821,2]
[354510089,1740544274411,-1211.22,0.00040821,2]
[354510090,1740544274420,-500.0,0.00040821,2]
[354510091,1740544274430,-743.17,0.00040821,2]
[354510092,1740544274440,-2331.34,0.00040821,2]
[354510093,1740544274450,-500.0,0.00040821,2]
[354510094,1740544274459,-1647.12,0.00040821,2]
[354510095,1740544274469,-777.71,0.00040821,2]
[354510096,1740544274479,-1861.53,0.00040821,2]